bitfinex/quotes_ETHUSD_20251018
["timestamp","ask_amount","ask_price","bid_price","bid_amount"]
[1760776435663,0.001,3898.9,3898.8,6.27757864]
[1760776436254,0.001,3898.9,3898.8,5.83177864]
[1760776438147,0.233,3898.9,3898.8,5.83177864]
[1760776438352,0.3887,3898.9,3898.8,2.69289176]
[1760776438849,0.001,3898.9,3898.8,2.69289176]
[1760776439276,0.001,3898.9,3898.8,3.32649176]
[1760776441054,0.388,3898.9,3898.8,3.32649176]
[1760776442053,0.388,3898.9,3898.8,2.69289176]
[1760776442277,0.001,3898.9,3898.8,2.69289176]
[1760776442648,0.001,3898.9,3898.8,3.32649176]
[1760776442988,0.3887,3898.9,3898.8,3.32649176]
[1760776443570,0.3887,3898.9,3898.8,0.128]
[1760776444084,0.3887,3898.9,3898.8,2.69289176]
[1760776445282,0.3887,3898.9,3898.8,2.56489176]
[1760776445746,0.001,3898.9,3898.8,2.56489176]
[1760776445947,0.001,3898.9,3898.8,2.69289176]
[1760776446376,0.001,3898.9,3898.8,3.32649176]
[1760776446561,0.001,3898.9,3898.8,3.9156431]
[1760776447083,0.001,3898.9,3898.8,3.94129201]
[1760776447273,0.001,3898.9,3898.8,4.3582431]
[1760776447666,0.001,3898.9,3898.8,3.9156431]
[1760776447981,0.1684,3898.9,3898.8,3.9156431]
[1760776448163,0.3881,3898.9,3898.8,2.69289176]
[1760776448680,0.001,3898.9,3898.8,5.36909176]
[1760776451254,0.001,3898.9,3898.8,4.92649176]
[1760776451459,0.001,3898.9,3898.8,5.6923831]
[1760776451788,0.001,3898.9,3898.8,6.1349831]
[1760776453988,0.001,3898.9,3898.8,5.6923831]
[1760776458574,0.001,3898.9,3898.8,5.8203831]
[1760776458888,0.001,3898.9,3898.8,6.2629831]
[1760776460035,0.001,3898.9,3898.8,5.8203831]
[1760776461598,0.3881,3898.9,3898.8,5.8203831]
[1760776463365,0.3886,3898.9,3898.8,4.42089176]
[1760776464402,0.001,3898.9,3898.8,4.42089176]
[1760776466516,0.001,3898.9,3898.8,5.08014067]
[1760776467379,0.001,3898.9,3898.8,5.05449176]
[1760776468043,0.001,3898.9,3898.8,5.52274067]
[1760776468347,0.001,3898.9,3898.8,5.86336799]
[1760776469025,0.001,3898.9,3898.8,6.30406799]
[1760776470550,0.001,3898.9,3898.8,5.86336799]
[1760776472543,0.001,3898.9,3898.8,6.30406799]
[1760776473057,0.001,3898.9,3898.8,5.86336799]
[1760776480177,0.001,3898.9,3898.8,6.30406799]
[1760776483077,0.001,3898.9,3898.8,5.86336799]
[1760776485576,0.3885,3898.9,3898.8,4.42089176]
[1760776485781,0.3885,3898.9,3898.8,2.56489176]
[1760776491884,0.3885,3898.9,3898.5,0.001]
[1760776492085,0.3885,3898.9,3898.8,2.56489176]
[1760776492282,0.3885,3898.9,3898.7,2.56495742]
[1760776492597,0.2168,3898.9,3898.8,2.56489176]
[1760776493070,0.3885,3898.9,3898.8,2.56489176]
[1760776493395,0.3885,3898.9,3898.6,2.56502334]
[1760776493598,0.2168,3898.9,3898.5,2.56605038]
[1760776493807,0.1717,3898.8,3898.5,2.56605038]
[1760776493967,0.2168,3898.9,3898.8,2.56489176]
[1760776494698,0.3885,3898.9,3898.8,2.56489176]
[1760776495295,0.001,3898.9,3898.8,2.56489176]
[1760776497987,0.001,3898.9,3898.8,4.15228284]
[1760776498201,0.001,3898.9,3898.8,5.88028284]
[1760776498399,0.001,3898.9,3898.8,8.47328284]
[1760776501572,0.001,3898.9,3898.8,5.43958284]
[1760776501771,0.001,3898.9,3898.8,4.29289176]
[1760776501974,0.3864,3898.9,3898.8,2.56489176]
[1760776505281,0.3864,3898.9,3898.5,2.56607899]
[1760776505545,0.001,3898.9,3898.8,2.56489176]
[1760776505847,0.2327,3898.9,3898.5,0.001]
[1760776506039,0.156,3898.8,3898.5,2.56608723]
[1760776506240,0.2327,3898.9,3898.6,2.56502334]
[1760776506241,0.156,3898.7,3898.6,2.56502334]
[1760776507150,0.156,3898.7,3898.5,0.001]
[1760776507354,0.156,3898.6,3898.5,2.56608913]
[1760776507848,0.156,3898.6,3898.5,0.001]
[1760776508352,0.2327,3898.9,3898.5,0.001]
[1760776508526,0.001,3898.9,3898.8,2.56489176]
[1760776509738,0.001,3898.9,3898.8,3.03339176]
[1760776510548,0.001,3898.9,3898.8,3.59589782]
[1760776510846,0.001,3898.9,3898.8,3.12739782]
[1760776511527,0.001,3898.9,3898.8,3.59589782]
[1760776512120,0.001,3898.9,3898.8,3.72389782]
[1760776512430,0.001,3898.9,3898.8,4.38314673]
[1760776513166,0.001,3898.9,3898.8,3.88899782]
[1760776513745,0.001,3898.9,3898.8,4.35749782]
[1760776514472,0.001,3898.9,3898.8,4.38314673]
[1760776514646,0.001,3898.9,3898.8,4.35749782]
[1760776515546,0.001,3898.9,3898.8,4.38314673]
[1760776515870,0.001,3898.9,3898.8,3.88899782]
[1760776516654,0.001,3898.9,3898.8,3.25539782]
[1760776516855,0.001,3898.9,3898.8,2.69289176]
[1760776517223,0.001,3898.9,3898.8,3.32649176]
[1760776518253,0.001,3898.9,3898.8,2.69289176]
[1760776519958,0.1578,3898.9,3898.8,2.69289176]
[1760776520379,0.388,3898.9,3898.8,2.69289176]
[1760776522083,0.388,3898.9,3898.5,0.001]
[1760776522450,0.128,3898.7,3898.5,0.001]
[1760776522848,0.1575,3898.6,3898.5,0.001]
[1760776525691,0.20220544,3898.6,3898.5,0.001]
[1760776527792,0.04470544,3898.6,3898.5,0.001]
[1760776527996,0.20220544,3898.6,3898.5,0.001]
[1760776528384,0.20220544,3898.6,3898.5,2.56608913]
[1760776528385,0.04470544,3898.6,3898.5,2.56608913]
[1760776528599,0.04470544,3898.6,3898.5,4.23073511]
[1760776529093,0.001,3898.9,3898.8,2.56489176]
[1760776529595,0.2253,3898.9,3898.8,2.56489176]
[1760776529795,0.3886,3898.9,3898.8,2.56489176]
[1760776530498,0.3886,3898.9,3898.7,2.56493256]
[1760776530673,0.001,3898.9,3898.8,2.56489176]
[1760776537321,0.001,3898.9,3898.8,3.53048327]
[1760776540981,0.001,3898.9,3898.8,3.07798327]
[1760776541181,0.001,3898.9,3898.8,2.56489176]
[1760776543345,0.001,3898.9,3898.8,3.01739176]
[1760776543509,0.001,3898.9,3898.8,2.69289176]
[1760776546121,0.001,3898.9,3898.8,2.56489176]
[1760776546342,0.388,3898.9,3898.7,2.56490309]
[1760776546523,0.1639,3898.8,3898.7,2.56490309]
[1760776546717,0.1639,3898.8,3898.5,2.69404725]
[1760776546913,0.336597,3898.7,3898.5,0.001]
[1760776547119,0.172697,3898.7,3898.6,2.56502334]
[1760776550427,0.337797,3898.7,3898.6,2.56502334]
[1760776550623,0.337797,3898.7,3898.5,0.001]
[1760776550929,0.1651,3898.6,3898.5,0.001]
[1760776551126,0.1651,3898.6,3898.5,2.56608913]
[1760776554750,0.128,3898.7,3898.6,2.56502334]
[1760776555058,0.2931,3898.7,3898.6,2.56502334]
[1760776555649,0.128,3898.7,3898.6,2.56502334]
[1760776556041,0.129,3898.7,3898.6,2.56502334]
[1760776559064,0.001,3898.7,3898.6,2.56502334]
[1760776559265,0.001,3898.7,3898.6,3.02262334]
[1760776559560,0.001,3898.7,3898.6,3.58406605]
[1760776559758,0.001,3898.7,3898.6,2.56502334]
[1760776560663,0.001,3898.7,3898.6,3.02262334]
[1760776562838,0.001,3898.7,3898.6,3.65622334]
[1760776567175,0.001,3898.7,3898.6,3.19862334]
[1760776569882,0.001,3898.7,3898.5,0.129]
[1760776570073,0.1672,3898.7,3898.6,2.56502334]
[1760776570787,0.1672,3898.7,3898.5,2.56607069]
[1760776570984,0.1662,3898.6,3898.5,0.001]
[1760776571185,0.1662,3898.6,3898.5,2.56608913]
[1760776571685,0.1662,3898.6,3898.5,0.001]
[1760776571888,0.1662,3898.6,3898.5,2.56608913]
[1760776572987,0.001,3898.7,3898.6,2.56502334]
[1760776573375,0.001,3898.7,3898.5,2.56606788]
[1760776573577,0.1668,3898.6,3898.5,0.001]
[1760776573953,0.001,3898.7,3898.5,0.001]
[1760776574289,0.1578,3898.6,3898.5,0.001]
[1760776575461,0.1578,3898.6,3898.5,2.56608913]
[1760776576293,0.0446986,3898.3,3898.1,0.001]
[1760776576495,4.50987328,3898.3,3898.1,0.001]
[1760776576695,9.32160538,3897.8,3897.7,0.001]
[1760776576864,12.84357377,3897.8,3897.7,0.001]
[1760776577063,13.00107377,3897.8,3897.7,0.001]
[1760776577283,14.58068891,3897.8,3897.7,0.001]
[1760776577973,14.96270707,3897.8,3897.7,0.001]
[1760776578797,14.58068891,3897.8,3897.7,0.001]
[1760776579098,12.01513912,3897.8,3897.7,0.001]
[1760776579284,12.41765855,3897.8,3897.7,0.001]
[1760776580064,0.0427,3896.3,3896.0,0.001]
[1760776581091,0.0427,3896.3,3896.0,0.4595]
[1760776581302,0.0427,3896.3,3896.1,2.56666923]
[1760776581503,0.0427,3896.3,3896.2,2.56660335]
[1760776581700,0.0427,3896.3,3896.0,0.4595]
[1760776582016,0.0427,3896.3,3896.2,2.56660335]
[1760776583212,0.0427,3896.3,3896.2,3.60719409]
[1760776586084,0.0427,3896.3,3896.2,3.73519409]
[1760776587224,0.128,3896.9,3896.7,2.56623815]
[1760776587514,0.51001816,3896.9,3896.6,2.56633818]
[1760776587880,0.51001816,3896.9,3896.2,1.16859074]
[1760776588082,0.51001816,3896.9,3896.2,0.5865]
[1760776588302,0.51001816,3896.9,3896.5,2.56635411]
[1760776588792,0.51001816,3896.9,3896.2,0.5865]
[1760776588793,0.51001816,3896.9,3896.6,2.56632184]
[1760776589011,0.51001816,3896.9,3896.7,2.5662151]
[1760776589186,0.51201816,3896.9,3896.7,2.5662151]
[1760776589386,0.51201816,3896.9,3896.8,2.56620817]
[1760776589690,0.13,3896.9,3896.8,2.56620817]
[1760776592887,0.13,3896.9,3896.8,3.02910817]
[1760776593106,0.002,3896.9,3896.8,3.58865194]
[1760776594388,0.002,3896.9,3896.7,2.56625358]
[1760776594608,0.002,3896.9,3896.8,2.56620817]
[1760776595019,0.128,3896.8,3896.7,2.56624919]
[1760776595913,0.128,3896.8,3896.6,0.4629]
[1760776596118,0.128,3896.8,3896.6,2.56633242]
[1760776596804,0.128,3896.8,3896.7,2.56627402]
[1760776597301,0.51001816,3896.8,3896.7,2.56627402]
[1760776597704,0.67271816,3896.8,3896.1,2.79473878]
[1760776597904,0.128,3896.6,3896.3,2.5664901]
[1760776598105,0.51001816,3896.6,3896.3,2.5664901]
[1760776598333,0.51001816,3896.6,3896.4,2.56645509]
[1760776598540,0.51001816,3896.6,3896.0,0.129]
[1760776598735,0.54471816,3896.5,3896.3,2.56653722]
[1760776598910,0.1627,3896.5,3896.3,2.56653722]
[1760776599110,0.1627,3896.5,3896.0,0.001]
[1760776599310,0.128,3896.3,3896.0,2.56772298]
[1760776599508,0.128,3896.3,3896.0,0.001]
[1760776600008,0.128,3896.3,3896.1,2.56666865]
[1760776600640,0.128,3896.3,3896.2,2.56660335]
[1760776606458,0.128,3896.3,3896.2,2.52190635]
[1760776607051,0.128,3896.3,3896.0,0.001]
[1760776607354,0.56528027,3896.3,3896.0,0.001]
[1760776607553,0.1627,3896.2,3896.0,0.001]
[1760776607753,0.72798027,3896.3,3896.0,2.56772746]
[1760776607940,0.38201816,3896.1,3896.0,2.56772746]
[1760776610853,0.72798027,3896.3,3896.0,2.56772746]
[1760776611057,0.56528027,3896.3,3896.1,2.56666384]
[1760776612363,6.39,3896.5,3896.4,2.56647161]
[1760776612722,6.39,3896.5,3896.4,3.02937161]
[1760776613367,0.002,3896.8,3896.7,2.56627402]
[1760776613743,0.002,3896.8,3896.7,3.66277402]
[1760776614041,0.002,3896.8,3896.7,4.8044005]
[1760776614248,0.002,3896.8,3896.7,7.3994005]
[1760776614450,0.002,3896.8,3896.7,9.1274005]
[1760776614759,0.002,3897.2,3897.1,2.56601062]
[1760776614963,0.002,3897.2,3897.1,7.74081062]
[1760776615130,0.002,3897.2,3897.1,9.28069118]
[1760776616860,0.002,3897.2,3897.1,6.05209118]
[1760776617161,0.002,3897.2,3897.1,6.18009118]
[1760776618735,0.002,3897.2,3897.1,6.13739118]
[1760776620661,0.002,3897.2,3897.1,6.77099118]
[1760776622447,1e-08,3897.3,3897.2,4.92754478]
[1760776622643,1e-08,3897.3,3897.2,6.86140731]
[1760776622847,1e-08,3897.3,3897.2,6.83574787]
[1760776623544,1e-08,3897.3,3897.2,6.37724787]
[1760776624276,1e-08,3897.3,3897.2,6.81904787]
[1760776625964,1e-08,3897.3,3897.2,6.37724787]
[1760776629553,1e-08,3897.3,3897.2,6.33254927]
[1760776631990,1e-08,3897.3,3897.2,6.77434927]
[1760776636298,1e-08,3897.3,3897.2,6.33254927]
[1760776636468,1e-08,3897.3,3897.2,6.77434927]
[1760776637392,1e-08,3897.3,3897.2,6.33254927]
[1760776638900,1e-08,3897.3,3897.2,5.69894927]
[1760776639399,0.15960001,3897.3,3897.2,5.69894927]
[1760776639969,1e-08,3897.3,3897.2,5.69894927]
[1760776645009,0.00064017,3897.6,3897.5,2.56574727]
[1760776645383,0.00064017,3897.6,3897.5,2.69374727]
[1760776645786,0.16024017,3897.6,3897.5,2.69374727]
[1760776653118,0.16024017,3897.6,3897.5,0.128]
[1760776653419,0.54225833,3897.6,3897.5,2.56574727]
[1760776654036,0.16024017,3897.6,3897.5,2.56574727]
[1760776659956,0.00064017,3897.6,3897.5,2.56574727]
[1760776665280,0.16724017,3897.6,3897.5,2.56574727]
[1760776666953,0.00064017,3897.6,3897.5,2.56574727]
[1760776667152,0.16724017,3897.6,3897.5,2.56574727]
[1760776667763,0.00064017,3897.6,3897.5,2.56574727]
[1760776669463,0.00064017,3897.6,3897.5,3.02244727]
[1760776669658,0.00064017,3897.6,3897.5,2.56574727]
[1760776669883,0.00064017,3897.6,3897.5,3.15044727]
[1760776670182,0.00064017,3897.6,3897.5,3.26537769]
[1760776670352,0.00064017,3897.6,3897.5,3.72207769]
[1760776671277,0.00064017,3897.6,3897.5,3.15044727]
[1760776681484,0.16834017,3897.6,3897.5,2.69374727]
[1760776684489,0.16834017,3897.6,3897.5,2.69574727]
[1760776684899,0.16834017,3897.6,3897.5,2.56774727]
[1760776684900,0.55035833,3897.6,3897.5,2.56774727]
[1760776685400,0.55035833,3897.6,3897.5,0.002]
[1760776685784,0.16834017,3897.6,3897.5,0.002]
[1760776685990,0.2130592,3897.6,3897.5,0.002]
[1760776686292,0.59507736,3897.6,3897.5,0.002]
[1760776687378,0.55035833,3897.6,3897.5,0.002]
[1760776689879,0.59507995,3897.6,3897.5,0.002]
[1760776696409,6.98507995,3897.6,3897.5,0.002]
[1760776696611,7.70564795,3897.6,3897.5,0.002]
[1760776698899,8.05872265,3897.6,3897.5,0.002]
[1760776699905,16.78519424,3897.6,3897.5,0.002]
[1760776700102,10.42032265,3897.6,3897.5,0.002]
[1760776700300,10.82284946,3897.6,3897.5,0.002]
[1760776700536,13.34380928,3897.6,3897.5,0.002]
[1760776700834,17.14299943,3897.6,3897.5,0.002]
[1760776702025,17.18772785,3897.6,3897.5,0.002]
[1760776702438,4.92774231,3896.9,3896.7,0.002]
[1760776702634,8.18171755,3896.9,3896.7,0.002]
[1760776702808,8.36871755,3896.9,3896.7,0.002]
[1760776703206,12.1679077,3896.9,3896.7,0.002]
[1760776703415,10.93485986,3896.9,3896.7,0.002]
[1760776703825,10.9795981,3896.9,3896.7,0.002]
[1760776705223,8.41345579,3896.9,3896.7,0.002]
[1760776707532,7.77985579,3896.9,3896.7,0.002]
[1760776707911,0.04473824,3896.9,3896.8,0.448]
[1760776709628,0.04473824,3896.9,3896.8,0.002]
[1760776709829,0.6140564,3896.9,3896.8,0.002]
[1760776710031,0.8299564,3896.9,3896.8,0.002]
[1760776710266,1.1830311,3896.9,3896.8,0.002]
[1760776710466,1.68125323,3896.9,3896.8,0.002]
[1760776710758,9.79925323,3896.9,3896.8,0.002]
[1760776712128,12.84216868,3896.9,3896.8,0.002]
[1760776712452,13.19524338,3896.9,3896.8,0.002]
[1760776712655,9.39605323,3896.9,3896.8,0.002]
[1760776712856,12.84216868,3896.9,3896.8,0.002]
[1760776713234,13.59654338,3896.9,3896.8,0.002]
[1760776713541,13.55180514,3896.9,3896.8,0.002]
[1760776713960,13.15050514,3896.9,3896.8,0.002]
[1760776714536,9.35131499,3896.9,3896.8,0.002]
[1760776714845,12.29920831,3896.9,3896.8,0.002]
[1760776716339,12.34394048,3896.9,3896.8,0.002]
[1760776716538,8.54475033,3896.9,3896.8,0.002]
[1760776716778,8.54475033,3896.9,3896.8,0.4658]
[1760776717960,8.54475033,3896.9,3896.8,0.002]
[1760776719859,10.04800006,3896.9,3896.8,0.002]
[1760776720058,10.57607476,3896.9,3896.8,0.002]
[1760776720463,10.57607476,3896.9,3895.8,0.3718]
[1760776720658,3.79919015,3896.6,3895.8,0.3718]
[1760776720860,0.38201816,3896.5,3895.6,0.001]
[1760776721063,2.11001816,3896.5,3895.7,2.56691371]
[1760776721365,0.04473561,3896.3,3895.7,2.56691371]
[1760776721572,0.38201816,3896.2,3895.6,0.001]
[1760776721945,0.38201816,3896.2,3895.6,2.56799829]
[1760776722446,0.38201816,3896.2,3895.6,0.001]
[1760776722642,0.59749354,3896.2,3895.6,0.001]
[1760776722842,0.59749354,3896.2,3895.7,0.4638]
[1760776724178,0.59749354,3896.2,3895.6,0.001]
[1760776724379,0.38201816,3896.2,3895.6,0.4648]
[1760776724571,0.38201816,3896.2,3895.6,3.03179134]
[1760776724774,0.38201816,3896.2,3895.7,2.56690738]
[1760776725081,0.38201816,3896.2,3895.7,3.03070738]
[1760776725283,0.38201816,3896.2,3895.8,0.4638]
[1760776725749,0.2661,3896.1,3895.6,0.001]
[1760776725949,0.38201816,3896.0,3895.6,0.001]
[1760776728020,0.83122255,3896.0,3895.6,0.001]
[1760776729704,1.09732255,3896.0,3895.6,0.001]
[1760776730335,0.83122255,3896.0,3895.6,0.001]
[1760776731938,0.128,3895.7,3895.6,0.001]
[1760776732086,0.51001816,3895.7,3895.6,0.4648]
[1760776732492,0.55475682,3895.7,3895.6,0.4648]
[1760776732996,0.51001816,3895.7,3895.6,0.4648]
[1760776733407,0.51001816,3895.7,3895.6,2.56799866]
[1760776733607,0.38201816,3895.7,3895.6,0.001]
[1760776734305,0.38201816,3895.7,3895.6,0.4648]
[1760776734642,0.38201816,3895.7,3895.6,0.001]
[1760776734811,0.38201816,3895.7,3895.6,3.55821949]
[1760776735011,0.38201816,3896.0,3895.6,0.99122083]
[1760776735239,0.38201816,3896.0,3895.7,0.4638]
[1760776735537,0.38201816,3896.0,3895.6,0.001]
[1760776735903,0.2661,3895.9,3895.6,0.001]
[1760776736104,0.38201816,3895.8,3895.6,0.001]
[1760776737108,0.42675754,3895.8,3895.6,0.001]
[1760776738749,0.496,3895.7,3895.6,0.001]
[1760776738902,1.23109286,3895.7,3895.6,0.001]
[1760776740212,0.38201816,3895.7,3895.6,0.001]
[1760776741415,0.59749391,3895.7,3895.6,0.001]
[1760776741711,0.87119391,3895.7,3895.6,0.001]
[1760776742027,0.59749391,3895.7,3895.6,0.001]
[1760776743110,0.42676062,3895.7,3895.6,0.001]
[1760776743310,0.38201816,3895.7,3895.6,0.001]
[1760776744741,0.42676041,3895.7,3895.6,0.001]
[1760776745814,0.04474225,3895.7,3895.6,3.00229866]
[1760776746013,0.04474225,3895.7,3895.6,3.55933798]
[1760776751756,0.04474225,3895.7,3895.6,3.58500796]
[1760776751953,1.728,3896.6,3896.2,2.56660032]
[1760776752832,0.128,3896.5,3896.4,2.56647161]
[1760776753175,0.128,3896.5,3896.4,3.00077161]
[1760776753353,0.128,3896.5,3896.2,2.5665421]
[1760776753545,0.128,3896.5,3896.1,2.79970529]
[1760776753546,0.128,3896.5,3896.3,2.56651457]
[1760776753973,0.128,3896.5,3896.1,0.2331]
[1760776754125,0.128,3896.5,3896.0,0.5623]
[1760776754126,0.51001816,3896.5,3896.0,2.69472276]
[1760776754325,0.84571816,3896.4,3895.7,0.4343]
[1760776754550,0.128,3896.2,3895.7,2.56692113]
[1760776754853,0.84571816,3896.1,3895.7,2.56692113]
[1760776755352,0.89045308,3896.1,3895.7,2.56692113]
[1760776755547,0.89045308,3896.1,3896.0,2.56673511]
[1760776755548,0.42675308,3896.1,3896.0,2.56673511]
[1760776756449,0.42675308,3896.1,3896.0,3.00103511]
[1760776756853,0.42675308,3896.1,3896.0,2.56673511]
[1760776758958,0.42675308,3896.1,3895.8,3.001133]
[1760776759157,0.42675308,3896.1,3895.6,2.56794257]
[1760776759358,0.42675308,3896.1,3895.6,2.56795608]
[1760776759547,0.4637,3896.0,3895.6,0.001]
[1760776759746,0.38201816,3895.9,3895.6,2.56799661]
[1760776759950,0.38201816,3895.9,3895.6,0.001]
[1760776760154,0.128,3895.7,3895.6,0.001]
[1760776760465,0.51001816,3895.7,3895.6,0.001]
[1760776760684,0.97371816,3895.7,3895.6,0.001]
[1760776760860,1.01845705,3895.7,3895.6,0.001]
[1760776761062,0.97371816,3895.7,3895.6,0.001]
[1760776762042,1.24388998,3895.7,3895.6,0.001]
[1760776764239,1.28863346,3895.7,3895.6,0.001]
[1760776770277,0.82493346,3895.7,3895.6,0.001]
[1760776770578,1.25463346,3895.7,3895.6,0.001]
[1760776775790,0.82493346,3895.7,3895.6,0.001]
[1760776776763,0.69693346,3895.7,3895.6,0.001]
[1760776778966,0.69693346,3895.7,3895.6,0.4434]
[1760776778967,0.42676164,3895.7,3895.6,0.4434]
[1760776779165,0.42676164,3895.7,3895.6,0.001]
[1760776783396,0.42676164,3895.7,3895.6,0.4434]
[1760776784096,0.42676164,3895.7,3895.6,3.01039866]
[1760776784610,0.42676164,3895.7,3895.6,0.4434]
[1760776786081,0.42676164,3895.7,3895.6,0.001]
[1760776788806,0.42676164,3895.7,3895.6,0.4434]
[1760776789787,0.42676164,3895.7,3895.6,0.001]
[1760776790684,0.85646164,3895.7,3895.6,0.001]
[1760776790884,0.42676164,3895.7,3895.6,0.001]
[1760776791418,0.85646164,3895.7,3895.6,0.001]
[1760776791728,0.85646164,3895.7,3894.9,3.00539834]
[1760776792020,0.38201816,3895.6,3895.0,2.56738086]
[1760776793831,0.38201816,3895.6,3894.8,0.001]
[1760776793832,0.38201816,3895.6,3894.8,2.56852543]
[1760776794246,0.81171816,3895.6,3894.8,0.001]
[1760776794907,0.81171816,3895.6,3894.8,2.56850685]
[1760776795325,0.81171816,3895.6,3894.8,0.001]
[1760776795908,0.27193153,3895.5,3894.8,2.56851633]
[1760776796228,0.38201816,3895.4,3894.8,2.56851633]
[1760776796438,0.38201816,3895.4,3894.8,0.001]
[1760776796822,0.04474632,3895.3,3894.8,0.001]
[1760776797138,0.38201816,3895.2,3894.8,0.001]
[1760776797523,0.4297,3895.1,3894.8,0.001]
[1760776797706,0.38201816,3895.0,3894.8,0.001]
[1760776799215,0.84571816,3895.0,3894.8,0.001]
[1760776799419,0.84541816,3895.0,3894.8,0.001]
[1760776800238,0.38201816,3895.0,3894.8,0.001]
[1760776800441,0.4634,3894.9,3894.8,0.001]
[1760776800599,0.84541816,3894.9,3894.8,0.001]
[1760776800996,0.89016788,3894.9,3894.8,0.001]
[1760776801526,1.38971684,3894.9,3894.8,0.001]
[1760776802058,1.74772585,3894.9,3894.8,0.001]
[1760776802264,1.87845964,3894.9,3894.8,0.001]
[1760776802441,1.47570091,3894.9,3894.8,0.001]
[1760776805463,1.87846762,3894.9,3894.8,0.001]
[1760776805968,1.92322377,3894.9,3894.8,0.001]
[1760776806865,6.85228378,3894.9,3894.8,0.001]
[1760776807438,13.24228378,3894.9,3894.8,0.001]
[1760776807858,13.34529678,3894.9,3894.8,0.001]
[1760776808436,10.77783677,3894.9,3894.8,0.001]
[1760776809566,10.67482377,3894.9,3894.8,0.001]
[1760776811271,9.91048998,3894.9,3894.8,0.001]
[1760776816346,14.0092865,3894.9,3894.8,0.001]
[1760776816777,14.4726865,3894.9,3894.8,0.001]
[1760776817376,13.71649387,3894.9,3894.8,0.001]
[1760776817573,13.25309387,3894.9,3894.8,0.001]
[1760776818863,13.71719387,3894.9,3894.8,0.001]
[1760776819294,13.25309387,3894.9,3894.8,0.001]
[1760776819665,13.71719387,3894.9,3894.8,0.001]
[1760776819988,13.25309387,3894.9,3894.8,0.001]
[1760776820459,13.71719387,3894.9,3894.8,0.001]
[1760776820875,9.44708998,3894.9,3894.8,0.001]
[1760776821160,13.71719387,3894.9,3894.8,0.001]
[1760776823274,13.25309387,3894.9,3894.8,0.001]
[1760776824469,13.71719387,3894.9,3894.8,0.001]
[1760776825671,16.91825388,3894.9,3894.8,0.001]
[1760776829506,17.14905388,3894.9,3894.8,0.001]
[1760776830086,14.58159387,3894.9,3894.8,0.001]
[1760776830287,17.14905388,3894.9,3894.8,0.001]
[1760776832982,16.68495388,3894.9,3894.8,0.001]
[1760776833213,17.14905388,3894.9,3894.8,0.001]
[1760776840129,14.11749387,3894.9,3894.8,0.001]
[1760776840724,16.68495388,3894.9,3894.8,0.001]
[1760776843696,17.14905388,3894.9,3894.8,0.001]
[1760776846031,9.67788998,3894.9,3894.8,0.001]
[1760776846234,6.83752286,3894.9,3894.8,0.4447]
[1760776846403,6.43475615,3894.9,3894.8,0.4447]
[1760776846595,6.43475615,3894.9,3894.8,3.01222593]
[1760776846798,6.39,3894.9,3894.8,0.74592259]
[1760776847209,6.39,3894.9,3894.8,3.01222593]
[1760776848909,0.128,3895.0,3894.9,2.56746001]
[1760776849104,0.128,3895.0,3894.9,3.01116001]
[1760776849317,0.17275124,3895.0,3894.9,3.01116001]
[1760776849636,0.04475124,3895.0,3894.9,3.01116001]
[1760776849809,0.04475124,3895.0,3894.9,3.58193448]
[1760776850203,0.04475124,3895.0,3894.9,1.01447447]
[1760776850428,0.4267694,3895.0,3894.9,0.4437]
[1760776851540,0.4267694,3895.0,3894.8,0.001]
[1760776851724,0.38201816,3894.9,3894.8,0.4447]
[1760776853233,0.38201816,3894.9,3894.8,0.001]
[1760776853440,0.38201816,3894.9,3894.8,0.4447]
[1760776854102,0.38201816,3894.9,3894.8,0.001]
[1760776854306,1.44002037,3894.9,3894.8,0.001]
[1760776854731,0.38201816,3894.9,3894.8,0.001]
[1760776855920,0.84011816,3894.9,3894.8,0.001]
[1760776856232,0.88487557,3894.9,3894.8,0.001]
[1760776858486,7.27487557,3894.9,3894.8,0.001]
[1760776860552,7.62795027,3894.9,3894.8,0.001]
[1760776860709,9.84525701,3894.9,3894.8,0.001]
[1760776864263,13.04631702,3894.9,3894.8,0.001]
[1760776865866,14.77431702,3894.9,3894.8,0.001]
[1760776870070,14.31621702,3894.9,3894.8,0.001]
[1760776870240,14.76761702,3894.9,3894.8,0.001]
[1760776872578,11.74875701,3894.9,3894.8,0.001]
[1760776872748,15.5547609,3894.9,3894.8,0.001]
[1760776876273,18.57362091,3894.9,3894.8,0.001]
[1760776876473,18.12222091,3894.9,3894.8,0.001]
[1760776877081,15.5547609,3894.9,3894.8,0.001]
[1760776877444,14.9211609,3894.9,3894.8,0.001]
[1760776879452,15.68242552,3894.9,3894.8,0.001]
[1760776881082,8.16275741,3894.9,3894.8,0.4556]
[1760776881662,8.118,3894.9,3894.8,0.4556]
[1760776882452,6.39,3894.9,3894.8,0.4556]
[1760776882674,6.39,3895.1,3894.8,0.4556]
[1760776882877,1.728,3895.0,3894.8,0.001]
[1760776883180,1.728,3895.0,3894.9,0.4546]
[1760776884150,1.77275642,3895.0,3894.9,0.4546]
[1760776884365,0.04475642,3895.0,3894.9,0.4546]
[1760776884975,6.39,3895.1,3894.9,0.4546]
[1760776885170,0.04475377,3895.0,3894.9,0.4546]
[1760776888858,0.128,3894.9,3894.8,0.001]
[1760776889266,0.8361762,3894.9,3894.8,0.001]
[1760776890986,2.02019605,3894.9,3894.8,0.001]
[1760776891285,2.45399605,3894.9,3894.8,0.001]
[1760776891586,2.10092135,3894.9,3894.8,0.001]
[1760776891885,1.66712135,3894.9,3894.8,0.001]
[1760776892070,2.10092135,3894.9,3894.8,0.001]
[1760776892683,1.66712135,3894.9,3894.8,0.001]
[1760776894500,8.05712135,3894.9,3894.8,0.001]